[Event "120th Taflfelag Reykjavik-B 2020"]
[Site "Reykjavik"]
[Date "2020.10.02"]
[Round "9.9"]
[White "Ptacnikova, Lenka"]
[Black "Olafsson, Thorvardur"]
[Result "1-0"]
[ECO "E05"]
[WhiteElo "2117"]
[BlackElo "2111"]
[Annotator "ChessBase"]
[PlyCount "61"]
[EventDate "2020.09.13"]
[EventType "tourn"]
[EventCountry "ISL"]
[SourceTitle "playchess.com"]
[Source "ChessBase"]
[SourceQuality "1"]
[TimeControl "40/5400+15:1800+30"]

1. Nf3 {[%emt 0:00:00]} Nf6 {[%emt 0:06:08]} 2. c4 {[%emt 0:01:17]} e6 {[%emt 0:06:15]} 3. g3 {[%emt 0:03:00]} d5 {[%emt 0:02:10]} 4. d4 {[%emt 0:00:48]} Be7 {[%emt 0:00:10]} 5. Bg2 {[%emt 0:00:15]} O-O {[%emt 0:00:00]} 6. O-O {[%emt 0:00:47]} dxc4 {[%emt 0:01:22]} 7. Qc2 {[%emt 0:02:16]} a6 {[%emt 0:01:26]} 8. Qxc4 {[%emt 0:02:46]} b5 {[%emt 0:00:07]} 9. Qc2 {[%emt 0:00:10]} Bb7 {[%emt 0:00:12]} 10. Nbd2 {[%emt 0:02:16]} Nbd7 {[%emt 0:03:41]} 11. Nb3 {[%emt 0:04:29]} Be4 {[%emt 0:04:55]} 12. Qd1 {[%emt 0:02:12]} c5 {[%emt 0:04:34]} 13. Bd2 {[%emt 0:00:30]} c4 {[%emt 0:09:34]} 14. Ba5 {[%emt 0:01:30]} Qb8 {[%emt 0:03:48]} 15. Nbd2 {[%emt 0:00:45]} Bd5 {[%emt 0:00:36]} 16. b3 {[%emt 0:04:24]} cxb3 {[%emt 0:49:02]} 17. axb3 {[%emt 0:02:02]} Qb7 {[%emt 0:01:20]} 18. Qb1 {[%emt 0:02:14]} Rfc8 {[%emt 0:02:27]} 19. Re1 {[%emt 0:03:49]} Ne4 {[%emt 0:02:16]} 20. Nxe4 {[%emt 0:01:04]} Bxe4 {[%emt 0:00:19]} 21. Ng5 {[%emt 0:01:10]} Bxb1 {[%emt 0:00:00]} 22. Bxb7 {[%emt 0:00:00]} Bc2 {[%emt 0:00:00]} 23. Nf3 {[%emt 0:29:06]} Bxb3 {[%emt 0:00:00]} 24. Bxa8 {[%emt 0:01:29]} Rxa8 {[%emt 0:00:00]} 25. Rec1 {[%emt 0:00:06]} Nf6 {[%emt 0:00:00]} 26. Rc7 {[%emt 0:05:28]} Kf8 {[%emt 0:00:00]} 27. Ne5 {[%emt 0:00:31]} Ke8 {[%emt 0:00:00]} 28. Rac1 {[%emt 0:01:04]} Bd6 {[%emt 0:00:00]} 29. Rc8+ {[%emt 0:00:12]} Rxc8 {[%emt 0:00:00]} 30. Rxc8+ {[%emt 0:00:00]} Ke7 {[%emt 0:00:00]} 31. Bd8+ {[%emt 0:00:00]} 1-0

[Event "120th Taflfelag Reykjavik-B 2020"]
[Site "Reykjavik"]
[Date "2020.10.02"]
[Round "9.10"]
[White "Heidarsson, Arnar Milutin"]
[Black "Jonsson, Gauti Pall"]
[Result "0-1"]
[ECO "E73"]
[WhiteElo "1965"]
[BlackElo "2046"]
[Annotator "ChessBase"]
[PlyCount "60"]
[EventDate "2020.09.13"]
[EventType "tourn"]
[EventCountry "ISL"]
[SourceTitle "playchess.com"]
[Source "ChessBase"]
[SourceQuality "1"]
[TimeControl "40/5400+15:1800+30"]

1. d4 {[%emt 1:30:15]} Nf6 {[%emt 1:30:15]} 2. c4 {[%emt 0:00:15]} g6 3. Nc3 {[%emt 0:00:15]} Bg7 {[%emt 0:00:30]} 4. e4 {[%emt 0:00:15]} d6 5. Be2 {[%emt 0:00:15]} O-O {[%emt 0:00:30]} 6. Be3 {[%emt 0:00:15]} Na6 {[%emt 0:00:15]} 7. g4 {[%emt 0:00:15]} c5 {[%emt 0:00:15]} 8. g5 {[%emt 0:00:15]} Ng4 {[%emt 0:00:15]} 9. Bxg4 {[%emt 0:00:15]} cxd4 {[%emt 0:00:15]} 10. Bxd4 {[%emt 0:00:15]} Bxd4 {[%emt 0:00:15]} 11. Qxd4 {[%emt 0:00:15]} Bxg4 {[%emt 0:00:15]} 12. f3 {[%emt 0:00:15]} Bh5 {[%emt 0:00:15]} 13. Nd5 {[%emt 0:00:15]} Nc7 {[%emt 0:00:15]} 14. Rc1 {[%emt 0:00:15]} Nxd5 {[%emt 0:00:15]} 15. Qxd5 {[%emt 0:00:15]} Qb6 {[%emt 0:00:15]} 16. Qd2 {[%emt 0:00:15]} Rac8 {[%emt 0:00:15]} 17. Kf1 {[%emt 0:00:15]} Qa6 {[%emt 0:00:15]} 18. b3 {[%emt 0:00:15]} b5 {[%emt 0:00:15]} 19. cxb5 {[%emt 0:00:15]} Rxc1+ {[%emt 0:00:15]} 20. Qxc1 {[%emt 0:00:15]} Qxa2 {[%emt 0:00:15]} 21. Qc3 {[%emt 0:00:15]} Rb8 {[%emt 0:00:15]} 22. Qd3 {[%emt 0:00:15]} Qa5 {[%emt 0:00:15]} 23. Kf2 {[%emt 0:00:15]} Qxb5 {[%emt 0:00:15]} 24. Qxb5 {[%emt 0:00:15]} Rxb5 {[%emt 0:00:15]} 25. Ne2 {[%emt 0:00:15]} Rxb3 {[%emt 0:00:15]} 26. Rc1 {[%emt 0:00:15]} Rxf3+ {[%emt 0:00:15]} 27. Kg2 {[%emt 0:00:15]} Rd3 {[%emt 0:00:15]} 28. Rc8+ {[%emt 0:00:15]} Kg7 {[%emt 0:00:15]} 29. Nf4 {[%emt 0:00:15]} Re3 {[%emt 0:00:15]} 30. Re8 {[%emt 0:00:15]} e6 {[%emt 0:00:15]} 0-1